[Event "XXIX Cracovia 2018"]
[Site "Krakow"]
[Date "2018.12.29"]
[Round "3"]
[White "Kosakowski, Jakub"]
[Black "Lee, Qing Aun"]
[Result "1/2-1/2"]
[ECO "C00"]
[WhiteElo "2415"]
[BlackElo "2297"]
[Annotator "NA"]
[PlyCount "79"]
[EventDate "2018.12.27"]
[EventType "swiss"]
[EventCountry "POL"]
[SourceTitle "playchess.com"]
[Source "ChessBase"]
[SourceQuality "1"]
[TimeControl "40/5400+30:1800+30"]

1. e4 {[%emt 0:00:00]} e6 {[%emt 0:08:37]} 2. Qe2 {[%emt 0:00:00]} c5 {[%emt 0:02:51]} 3. Nf3 {[%emt 0:00:39]} Nc6 {[%emt 0:01:53]} 4. g3 {[%emt 0:00:13]} g6 {[%emt 0:01:49]} 5. Bg2 {[%emt 0:00:17]} Bg7 {[%emt 0:00:22]} 6. O-O {[%emt 0:00:24]} Nge7 {[%emt 0:00:57]} 7. c3 {[%emt 0:02:28]} e5 {[%emt 0:03:34] C00: French: Unusual White 2nd moves} 8. Na3 {[%emt 0:04:59] LiveBook: 10 Games} O-O {[%emt 0:03:09]} 9. Nc2 {[%emt 0:05:06]} d5 {[%emt 0:05:05]} 10. d3 {[%emt 0:05:02]} h6 {[%emt 0:01:11]} 11. b4 {[%emt 0:03:09]} cxb4 {[%emt 0:05:01]} 12. cxb4 {[%emt 0:00:47]} a6 {[%emt 0:01:00]} 13. Bb2 {[%emt 0:04:01]} d4 {[%emt 0:03:13]} 14. Nd2 {[%emt 0:00:22] [#]} Be6 $146 {[%emt 0:03:49]} ({Predecessor:} 14... Re8 15. a4 Be6 {0-1 (71) King,D (2530)-Nunn,J (2610) Bunratty 1998}) 15. a3 {[%emt 0:03:11]} g5 {[%emt 0:04:15]} 16. Rac1 {[%emt 0:02:01]} b5 {[%emt 0:03:01]} 17. Na1 {[%emt 0:10:52]} Qb6 {[%emt 0:05:30]} 18. Nab3 {[%emt 0:02:16]} a5 {[%emt 0:00:49]} 19. bxa5 {[%emt 0:06:47]} Nxa5 {[%emt 0:00:07]} 20. Nc5 {[%emt 0:14:20]} Rac8 {[%emt 0:00:31]} 21. Nxe6 {[%emt 0:00:12]} Qxe6 {[%emt 0:00:02]} 22. Rxc8 {[%emt 0:03:51]} Rxc8 {[%emt 0:00:15]} 23. Rc1 {[%emt 0:00:08]} Qa2 {[%emt 0:04:36]} 24. Rxc8+ {[%emt 0:02:32]} Nxc8 {[%emt 0:00:01]} 25. Nf3 {[%emt 0:00:46]} Qb1+ {[%emt 0:09:08]} 26. Bf1 $1 {[%emt 0:01:21]} Nb6 {[%emt 0:00:56]} 27. Qd2 {[%emt 0:01:21]} Nc6 {[%emt 0:05:47]} 28. h4 {[%emt 0:02:43]} f6 {[%emt 0:03:07]} 29. Bc1 {[%emt 0:00:41]} Na4 {[%emt 0:03:06]} 30. hxg5 {[%emt 0:04:18]} hxg5 {[%emt 0:00:14]} 31. Bh3 {[%emt 0:03:23]} Nc5 {[%emt 0:01:29]} 32. Ne1 {[%emt 0:00:09]} Kf8 {[%emt 0:06:40]} 33. Kg2 $11 {[%emt 0:08:05]} Nb3 {[%emt 0:06:26]} 34. Qd1 {[%emt 0:00:07]} Nxc1 {[%emt 0:01:30]} 35. Bd7 {[%emt 0:08:22]} Nd8 {[%emt 0:00:26]} 36. Qh5 {[%emt 0:00:23]} Nf7 {[%emt 0:00:07]} 37. Be6 {[%emt 0:00:06]} Nh6 {[%emt 0:00:34]} 38. Bd7 {[%emt 0:00:08]} Nf7 {[%emt 0:00:05]} 39. Be6 {[%emt 0:00:04]} Nh6 {[%emt 0:00:05]} 40. Bd7 {[%emt 0:00:00]} 1/2-1/2

[Event "XXIX Cracovia 2018"]
[Site "Krakow"]
[Date "2018.12.29"]
[Round "3"]
[White "Hnydiuk, Aleksander"]
[Black "Krallis, Christos"]
[Result "1-0"]
[ECO "E06"]
[WhiteElo "2409"]
[BlackElo "2261"]
[Annotator "NA"]
[PlyCount "123"]
[EventDate "2018.12.27"]
[EventType "swiss"]
[EventCountry "POL"]
[SourceTitle "playchess.com"]
[Source "ChessBase"]
[SourceQuality "1"]
[TimeControl "40/5400+30:1800+30"]

1. Nf3 {[%emt 0:07:50]} Nf6 {[%emt 0:00:57]} 2. c4 {[%emt 0:00:37]} e6 {[%emt 0:00:12]} 3. g3 {[%emt 0:00:08]} d5 {[%emt 0:00:07]} 4. d4 {[%emt 0:00:04]} Be7 {[%emt 0:00:20]} 5. Bg2 {[%emt 0:00:10]} O-O {[%emt 0:00:14]} 6. O-O {[%emt 0:00:08]} c6 {[%emt 0:00:10]} 7. b3 {[%emt 0:00:42]} b6 {[%emt 0:00:13]} 8. Bb2 {[%emt 0:00:05]} Bb7 {[%emt 0:01:10]} 9. Nc3 {[%emt 0:00:15]} Nbd7 {[%emt 0:01:04]} 10. Qd3 {[%emt 0:00:06]} c5 {[%emt 0:11:42] LiveBook: 6 Games E07: Closed Catalan: Main Line (5 Nf3 0-0 6 0-0 Nbd7)} 11. cxd5 {[%emt 0:00:11]} exd5 {[%emt 0:01:08]} 12. Rfd1 {[%emt 0:11:28]} Ne4 $146 {[%emt 0:10:24]} ({Predecessor:} 12... Re8 13. e3 Bf8 14. Rac1 Rc8 15. Qb1 h6 16. dxc5 bxc5 17. Ne1 Nb6 {½-½ (54) Iotov,V (2556)-Farago,I (2482) Bad Woerishofen 2009}) 13. Rac1 {[%emt 0:13:59]} Bf6 {[%emt 0:07:13]} 14. Qb1 {[%emt 0:11:33]} Nxc3 {[%emt 0:22:09]} 15. Bxc3 {[%emt 0:01:42]} Re8 {[%emt 0:01:42]} 16. e3 {[%emt 0:05:24]} Qe7 {[%emt 0:02:56]} 17. Ne1 {[%emt 0:02:56]} Rad8 {[%emt 0:10:49]} 18. Nd3 {[%emt 0:09:34]} cxd4 {[%emt 0:01:31]} 19. Bb4 {[%emt 0:02:32]} Qe6 {[%emt 0:03:11]} 20. Nf4 {[%emt 0:00:17]} Qe5 {[%emt 0:02:49]} 21. Rxd4 {[%emt 0:13:12]} (21. exd4 $142 Qb8 22. Nxd5 (22. Bxd5 Bg5 $14)) 21... Nf8 {[%emt 0:08:18]} 22. Rdd1 {[%emt 0:03:46]} Ne6 {[%emt 0:09:09]} 23. Bc3 {[%emt 0:00:42]} d4 {[%emt 0:01:34]} 24. Bxd4 $16 {[%emt 0:06:14]} ({Much worse is} 24. Bxb7 $6 dxc3 25. Nd5 Nc5 $14) 24... Nxd4 {[%emt 0:00:20]} 25. Bxb7 {[%emt 0:00:31]} Ne6 {[%emt 0:00:40]} 26. Nd5 {[%emt 0:01:07]} Nc5 {[%emt 0:00:49]} 27. Bc6 {[%emt 0:03:15]} Re6 {[%emt 0:00:53]} 28. Nxf6+ {[%emt 0:00:32]} Qxf6 {[%emt 0:00:04]} 29. Rxd8+ {[%emt 0:02:04]} Qxd8 {[%emt 0:00:01]} 30. Rd1 {[%emt 0:00:29]} Rd6 {[%emt 0:00:32]} 31. Bf3 {[%emt 0:01:58]} Rxd1+ {[%emt 0:00:18]} 32. Qxd1 {[%emt 0:00:15]} Qxd1+ {[%emt 0:02:11]} 33. Bxd1 {[%emt 0:00:02]} Kf8 {[%emt 0:00:19]} 34. Bc2 {[%emt 0:00:08]} Ke7 {[%emt 0:00:11]} 35. f4 {[%emt 0:00:30]} Ke6 {[%emt 0:01:03]} 36. Kf2 {[%emt 0:00:35]} g6 {[%emt 0:01:03]} 37. e4 {[%emt 0:00:36]} Kd6 {[%emt 0:00:23]} 38. Ke3 {[%emt 0:00:10]} f6 {[%emt 0:00:32]} 39. Bd3 {[%emt 0:00:30]} Ne6 {[%emt 0:00:37]} 40. Bc4 {[%emt 0:00:00]} Nc7 {[%emt 0:00:00]} 41. Kd4 {[%emt 0:01:04]} h6 {[%emt 0:01:36]} 42. Bf7 {[%emt 0:09:25]} g5 {[%emt 0:00:34]} 43. Bc4 {[%emt 0:00:54]} Ke7 {[%emt 0:03:00]} 44. e5 {[%emt 0:06:12]} gxf4 {[%emt 0:01:12]} 45. gxf4 {[%emt 0:00:03]} f5 {[%emt 0:00:23]} 46. Bd3 {[%emt 0:01:54]} Ne6+ {[%emt 0:01:15]} 47. Ke3 {[%emt 0:09:34]} Ng7 {[%emt 0:00:17]} 48. Bc4 {[%emt 0:02:23]} Ne8 {[%emt 0:01:08]} 49. Bg8 {[%emt 0:00:30]} Ng7 {[%emt 0:01:02]} 50. Bh7 {[%emt 0:02:30]} Ke6 {[%emt 0:01:09]} 51. Bg6 {[%emt 0:01:05]} Ke7 {[%emt 0:02:37]} 52. b4 {[%emt 0:00:56]} Kd7 {[%emt 0:02:28]} 53. Kd3 {[%emt 0:00:43]} Ke7 {[%emt 0:02:01]} 54. a3 {[%emt 0:01:54]} b5 {[%emt 0:07:38]} 55. Ke3 {[%emt 0:00:20]} Kf8 {[%emt 0:00:01]} 56. Bh7 {[%emt 0:01:18]} Kf7 {[%emt 0:00:52]} 57. Kd4 {[%emt 0:00:33]} Ne6+ {[%emt 0:00:10]} 58. Kd5 {[%emt 0:00:22]} Nxf4+ {[%emt 0:00:07]} 59. Kd6 {[%emt 0:00:03]} Ne6 {[%emt 0:02:09]} 60. Bxf5 {[%emt 0:00:15]} Nd4 {[%emt 0:00:17]} 61. Bd3 {[%emt 0:00:49]} a6 {[%emt 0:00:26]} 62. Be4 {[%emt 0:00:07]} 1-0

[Event "XXIX Cracovia 2018"]
[Site "Krakow"]
[Date "2018.12.29"]
[Round "3"]
[White "Molenda, Marcin"]
[Black "Marczuk, Dominik"]
[Result "0-1"]
[ECO "E62"]
[WhiteElo "2383"]
[BlackElo "2274"]
[Annotator "NA"]
[PlyCount "86"]
[EventDate "2018.12.27"]
[EventType "swiss"]
[EventCountry "POL"]
[SourceTitle "playchess.com"]
[Source "ChessBase"]
[SourceQuality "1"]
[TimeControl "40/5400+30:1800+30"]

1. d4 {[%emt 0:00:00]} Nf6 {[%emt 0:00:00]} 2. Nf3 {[%emt 0:00:00]} g6 {[%emt 0:00:13]} 3. c4 {[%emt 0:00:37]} Bg7 {[%emt 0:00:11]} 4. g3 {[%emt 0:00:11]} O-O {[%emt 0:00:24]} 5. Bg2 {[%emt 0:00:06]} d6 {[%emt 0:00:11]} 6. O-O {[%emt 0:00:14]} Nc6 {[%emt 0:01:10]} 7. Nc3 {[%emt 0:00:14]} Bf5 {[%emt 0:01:29]} 8. d5 {[%emt 0:04:30]} Na5 {[%emt 0:00:12]} 9. Nd4 {[%emt 0:00:24]} Bd7 {[%emt 0:00:44]} 10. b3 {[%emt 0:00:13]} c5 {[%emt 0:01:26]} 11. dxc6 {[%emt 0:00:09]} bxc6 {[%emt 0:00:37]} 12. e4 {[%emt 0:17:24] E62: King's Indian: Fianchetto: 6...c6 and Panno Variation (6...Nc6) without ...a6} Rb8 {[%emt 0:05:45]} 13. h3 {[%emt 0:05:05]} c5 {[%emt 0:11:06]} 14. Nde2 {[%emt 0:00:33]} Nc6 {[%emt 0:00:52]} 15. Be3 {[%emt 0:00:45]} Ne8 {[%emt 0:12:32]} 16. f4 $146 {[%emt 0:13:28]} ({Predecessor:} 16. Qd2 Nc7 17. Rad1 Ne6 18. Bh6 Ned4 19. Bxg7 Kxg7 {1-0 (40) Macias Murillo,B (2382)-Felgaer,R (2564) Quito 2012}) 16... f5 {[%emt 0:04:26]} 17. Rc1 {[%emt 0:07:08]} Nc7 {[%emt 0:05:50]} 18. e5 {[%emt 0:12:54]} dxe5 {[%emt 0:00:55]} 19. fxe5 {[%emt 0:00:53]} Ne6 {[%emt 0:23:47]} 20. Bd5 {[%emt 0:08:29]} Kh8 {[%emt 0:03:34]} 21. Bxe6 {[%emt 0:00:35]} (21. Nf4 $16 Ned4 22. e6) 21... Bxe6 {[%emt 0:00:07]} 22. Nf4 {[%emt 0:00:25]} Bg8 {[%emt 0:05:05]} 23. Qxd8 {[%emt 0:02:03]} Rfxd8 {[%emt 0:00:51]} 24. Bxc5 {[%emt 0:00:06]} Bxe5 {[%emt 0:00:41]} 25. Kg2 {[%emt 0:06:13]} Bg7 {[%emt 0:03:55]} 26. Rf2 {[%emt 0:01:31]} e5 $11 {[%emt 0:02:37]} 27. Nfd5 {[%emt 0:00:03]} Rd7 {[%emt 0:00:25]} 28. Rd1 {[%emt 0:04:21]} Rbd8 {[%emt 0:01:07]} 29. Ne3 {[%emt 0:02:19]} Nd4 {[%emt 0:02:52]} 30. Ncd5 {[%emt 0:00:52]} Bh6 {[%emt 0:05:39]} 31. Ba3 {[%emt 0:03:45]} Nc6 {[%emt 0:03:31]} 32. Bb2 {[%emt 0:00:13]} Bxe3 {[%emt 0:00:43]} 33. Nxe3 {[%emt 0:01:19]} Rxd1 {[%emt 0:00:09]} 34. Nxd1 {[%emt 0:00:02]} Rxd1 {[%emt 0:00:15]} 35. Re2 {[%emt 0:00:05]} Nd4 {[%emt 0:01:30]} 36. Kf2 {[%emt 0:00:06]} Kg7 {[%emt 0:01:42]} 37. Rxe5 {[%emt 0:00:25]} Rd2+ 38. Ke3 Rxb2 {[%emt 0:00:35]} 39. Kxd4 {[%emt 0:00:02]} Rxa2 {[%emt 0:00:09]} 40. b4 {[%emt 0:00:00]} Kf6 {[%emt 0:00:00]} 41. Re8 {[%emt 0:02:11]} Bf7 {[%emt 0:02:19]} 42. Rb8 {[%emt 0:00:22]} Rd2+ {[%emt 0:01:16]} 43. Ke3 {[%emt 0:00:01]} Rg2 {[%emt 0:02:23]} 0-1

[Event "XXIX Cracovia 2018"]
[Site "Krakow"]
[Date "2018.12.29"]
[Round "3"]
[White "Biriukov, Nikolai"]
[Black "Zaleski, Lukasz"]
[Result "1-0"]
[ECO "A40"]
[WhiteElo "2365"]
[BlackElo "2116"]
[Annotator "NA"]
[PlyCount "67"]
[EventDate "2018.12.27"]
[EventType "swiss"]
[EventCountry "POL"]
[SourceTitle "playchess.com"]
[Source "ChessBase"]
[SourceQuality "1"]
[TimeControl "40/5400+30:1800+30"]

1. d4 {[%emt 0:00:00]} e6 {[%emt 0:05:30]} 2. Nf3 {[%emt 0:01:44]} Nf6 {[%emt 0:00:07]} 3. g3 {[%emt 0:00:06]} c5 {[%emt 0:00:13]} 4. Bg2 {[%emt 0:00:07]} cxd4 {[%emt 0:03:28]} 5. Nxd4 {[%emt 0:00:04]} d5 {[%emt 0:00:16]} 6. O-O {[%emt 0:00:20]} Be7 {[%emt 0:05:18]} 7. c4 {[%emt 0:01:49]} O-O {[%emt 0:07:23]} 8. cxd5 {[%emt 0:00:34]} Nxd5 {[%emt 0:01:27] LiveBook: 105 Games} 9. Qb3 {[%emt 0:01:33] D02: 1 d4 d5 2 Nf3 sidelines, including 2...Nf6 3 g3 and 2...Nf6 3 Bf4} (9. b3 Qa5 10. Bb2 Rd8 11. Qd2 Bb4 12. Qc2 Bd7 13. a3 Bf8 14. b4 Qa6 15. Nc3 Nxc3 16. Bxc3 Rc8 {1-0 (28) Meier,G (2655)-Rodshtein,M (2699) Heraklio 2017}) 9... Nc6 {[%emt 0:07:34]} 10. Nxc6 {[%emt 0:02:19]} bxc6 {[%emt 0:00:05]} 11. e4 {[%emt 0:00:08]} Nf6 {[%emt 0:06:10]} 12. Bf4 $146 {[%emt 0:00:14]} ({Predecessor:} 12. Rd1 Qb6 13. Qxb6 axb6 14. Be3 Ng4 15. Bxb6 Rb8 16. Bd4 e5 {½-½ (38) Ershov,V (2031)-Vunder,Y (2221) St Petersburg 2011}) 12... Qa5 {[%emt 0:05:55]} 13. Qc3 {[%emt 0:06:09]} Qxc3 {[%emt 0:06:43]} 14. Nxc3 {[%emt 0:00:06]} Rd8 {[%emt 0:00:45]} 15. Rfd1 {[%emt 0:05:19]} Ba6 {[%emt 0:01:44]} 16. Bf3 {[%emt 0:00:36]} Rxd1+ {[%emt 0:01:18]} 17. Rxd1 {[%emt 0:00:13]} Rd8 {[%emt 0:01:37]} 18. Rc1 {[%emt 0:09:03]} c5 {[%emt 0:06:00]} 19. Na4 {[%emt 0:03:44]} c4 {[%emt 0:15:37]} 20. Be3 {[%emt 0:03:36]} Bb5 {[%emt 0:02:19]} 21. Nc3 {[%emt 0:02:23]} Bc6 {[%emt 0:02:17]} 22. Bxa7 {[%emt 0:05:19]} Rd2 {[%emt 0:01:05]} 23. Rb1 {[%emt 0:00:17]} Bb4 {[%emt 0:01:11]} 24. Be3 {[%emt 0:00:56]} Rd8 {[%emt 0:02:39]} 25. Rc1 {[%emt 0:01:28]} Ba5 {[%emt 0:08:57]} 26. Ne2 {[%emt 0:01:16]} Bxe4 {[%emt 0:02:13]} 27. Bxe4 {[%emt 0:00:08]} Nxe4 {[%emt 0:00:03]} 28. Rxc4 {[%emt 0:00:12]} Nd2 {[%emt 0:00:31]} 29. Ra4 {[%emt 0:03:08]} Bc7 {[%emt 0:01:56]} 30. Kg2 {[%emt 0:04:22]} e5 {[%emt 0:01:57]} 31. Nc3 $18 {[%emt 0:02:21]} f5 {[%emt 0:02:37]} 32. Nb5 {[%emt 0:00:15]} Bb8 {[%emt 0:00:10]} 33. Ra8 {[%emt 0:00:28]} Nc4 {[%emt 0:00:52]} 34. Ba7 {[%emt 0:00:15]} 1-0

[Event "XXIX Cracovia 2018"]
[Site "Krakow"]
[Date "2018.12.29"]
[Round "3"]
[White "Paszewski, Mateusz"]
[Black "Sahil, Tickoo"]
[Result "1/2-1/2"]
[ECO "C07"]
[WhiteElo "2342"]
[BlackElo "2224"]
[Annotator "NA"]
[PlyCount "70"]
[EventDate "2018.12.27"]
[EventType "swiss"]
[EventCountry "POL"]
[SourceTitle "playchess.com"]
[Source "ChessBase"]
[SourceQuality "1"]
[TimeControl "40/5400+30:1800+30"]

1. e4 e6 2. d4 d5 3. Nd2 c5 4. exd5 Qxd5 5. Ngf3 cxd4 6. Bc4 Qd6 7. O-O Nf6 8. Nb3 Nc6 9. Nbxd4 Nxd4 10. Nxd4 a6 11. Re1 Bd7 12. c3 Qc7 13. Bf1 Bd6 14. g3 O-O-O 15. Qf3 e5 16. Nf5 Bc5 17. Nxg7 Ng4 18. Be3 Nxe3 19. fxe3 Bc6 20. Qf2 Qd7 21. Bg2 Bxg2 22. Kxg2 Qg4 23. Nf5 Qe4+ 24. Kg1 Rd7 25. Re2 Rhd8 26. Rf1 Rd1 27. h3 Qb1 28. Ree1 Rxe1 29. Rxe1 Qxa2 30. Kh2 Kb8 31. Re2 Qb1 32. Qf3 Qd1 33. Qg2 Qb1 34. Qf3 Qd1 35. Qg2 Qb1 1/2-1/2

[Event "XXIX Cracovia 2018"]
[Site "Krakow"]
[Date "2018.12.29"]
[Round "3"]
[White "Colijn, Stefan"]
[Black "Kubicka, Anna"]
[Result "1-0"]
[ECO "A21"]
[WhiteElo "2331"]
[BlackElo "2168"]
[Annotator "NA"]
[PlyCount "55"]
[EventDate "2018.12.27"]
[EventType "swiss"]
[EventCountry "POL"]
[SourceTitle "playchess.com"]
[Source "ChessBase"]
[SourceQuality "1"]
[TimeControl "40/5400+30:1800+30"]

1. c4 {[%emt 0:03:25]} e5 {[%emt 0:00:22]} 2. Nc3 {[%emt 0:00:10]} Bb4 {[%emt 0:01:16]} 3. Qc2 {[%emt 0:00:39]} Nc6 {[%emt 0:00:50]} 4. Nf3 {[%emt 0:01:57]} Nge7 {[%emt 0:02:14]} 5. e3 {[%emt 0:01:20]} Bxc3 {[%emt 0:03:30]} 6. Qxc3 {[%emt 0:00:14]} d6 {[%emt 0:00:06]} 7. d3 {[%emt 0:04:55]} O-O {[%emt 0:01:05]} 8. Be2 {[%emt 0:00:11]} f5 {[%emt 0:00:33]} 9. b3 {[%emt 0:02:17]} Ng6 {[%emt 0:00:26]} 10. Bb2 {[%emt 0:00:35]} Kh8 {[%emt 0:02:09]} 11. h4 {[%emt 0:00:49]} Qf6 {[%emt 0:03:02]} 12. h5 {[%emt 0:05:20]} Nge7 {[%emt 0:00:19]} 13. h6 {[%emt 0:00:04]} g5 {[%emt 0:08:07]} 14. d4 {[%emt 0:05:47]} Ng6 {[%emt 0:10:47]} 15. dxe5 {[%emt 0:07:17]} dxe5 {[%emt 0:00:45]} 16. Nxe5 {[%emt 0:05:44]} Ncxe5 {[%emt 0:07:56]} 17. f4 {[%emt 0:00:25]} gxf4 {[%emt 0:00:04]} 18. exf4 {[%emt 0:00:06]} Be6 {[%emt 0:02:08]} 19. O-O-O {[%emt 0:03:40]} Rad8 {[%emt 0:01:37]} 20. Bh5 {[%emt 0:13:47]} Rxd1+ {[%emt 0:16:11]} 21. Rxd1 {[%emt 0:00:18]} Qh4 {[%emt 0:00:52]} 22. Bxg6 {[%emt 0:01:39]} Qxf4+ {[%emt 0:00:09]} 23. Kb1 {[%emt 0:00:05]} hxg6 {[%emt 0:01:05]} 24. Re1 {[%emt 0:01:14]} Kg8 {[%emt 0:24:39]} 25. Rxe5 {[%emt 0:02:11]} Kf7 {[%emt 0:02:53]} 26. Re1 {[%emt 0:00:18]} Ke7 {[%emt 0:01:09]} 27. h7 {[%emt 0:00:17]} Qf2 {[%emt 0:01:01]} 28. Qe5 {[%emt 0:03:16]} 1-0

[Event "XXIX Cracovia 2018"]
[Site "Krakow"]
[Date "2018.12.29"]
[Round "3"]
[White "Dietmayer-Kraeutler, Marco"]
[Black "Turski, Bartlomiej"]
[Result "1/2-1/2"]
[ECO "E91"]
[WhiteElo "2311"]
[BlackElo "1924"]
[Annotator "NA"]
[PlyCount "53"]
[EventDate "2018.12.27"]
[EventType "swiss"]
[EventCountry "POL"]
[SourceTitle "playchess.com"]
[Source "ChessBase"]
[SourceQuality "1"]
[TimeControl "40/5400+30:1800+30"]

1. d4 {[%emt 0:01:14]} Nf6 {[%emt 0:00:00]} 2. c4 {[%emt 0:00:03]} g6 {[%emt 0:00:00]} 3. Nc3 {[%emt 0:00:03]} Bg7 {[%emt 0:00:01]} 4. e4 {[%emt 0:00:02]} d6 {[%emt 0:00:12]} 5. Nf3 {[%emt 0:00:01]} O-O {[%emt 0:00:16]} 6. Be2 {[%emt 0:00:02]} Nbd7 {[%emt 0:00:17]} 7. O-O {[%emt 0:03:06]} e5 {[%emt 0:00:28]} 8. Rb1 {[%emt 0:04:54]} h6 {[%emt 0:08:16]} 9. b4 {[%emt 0:01:34]} Qe7 {[%emt 0:05:03]} 10. d5 {[%emt 0:03:08]} Nh5 {[%emt 0:03:35]} 11. Nb5 {[%emt 0:02:15]} Ndf6 {[%emt 0:25:56]} 12. Qc2 {[%emt 0:07:48]} Nxe4 {[%emt 0:01:05]} 13. c5 {[%emt 0:06:42]} a6 {[%emt 0:12:25]} 14. cxd6 {[%emt 0:00:43]} Nxd6 {[%emt 0:01:32]} 15. Qxc7 {[%emt 0:00:21]} Qxc7 {[%emt 0:05:35]} 16. Nxc7 {[%emt 0:01:25]} Bf5 {[%emt 0:01:14]} 17. Nxa8 {[%emt 0:01:42]} Bxb1 {[%emt 0:00:15]} 18. Nb6 {[%emt 0:00:25]} e4 {[%emt 0:04:48]} 19. Nh4 {[%emt 0:04:10]} Bxa2 {[%emt 0:03:35]} 20. Bxh5 {[%emt 0:02:55]} gxh5 {[%emt 0:00:19]} 21. Bf4 {[%emt 0:00:09]} Nc8 {[%emt 0:03:41]} 22. Nxc8 {[%emt 0:02:32]} Rxc8 {[%emt 0:01:15]} 23. Nf5 {[%emt 0:02:13]} Bf8 {[%emt 0:04:52]} 24. d6 {[%emt 0:25:08]} Be6 {[%emt 0:01:01]} 25. Ne7+ {[%emt 0:00:18]} Bxe7 {[%emt 0:00:08]} 26. dxe7 {[%emt 0:00:05]} f6 {[%emt 0:02:28]} 27. Re1 {[%emt 0:01:42]} 1/2-1/2

[Event "XXIX Cracovia 2018"]
[Site "Krakow"]
[Date "2018.12.29"]
[Round "3"]
[White "Baum, Jonasz"]
[Black "Martynyuk, Elizaveta"]
[Result "1-0"]
[ECO "D15"]
[WhiteElo "2302"]
[BlackElo "2128"]
[Annotator "NA"]
[PlyCount "61"]
[EventDate "2018.12.27"]
[EventType "swiss"]
[EventCountry "POL"]
[SourceTitle "playchess.com"]
[Source "ChessBase"]
[SourceQuality "1"]
[TimeControl "40/5400+30:1800+30"]

1. d4 {[%emt 0:00:00]} d5 {[%emt 0:03:17]} 2. c4 {[%emt 0:00:00]} c6 {[%emt 0:00:11]} 3. Nf3 {[%emt 0:00:00]} Nf6 {[%emt 0:00:07]} 4. Nc3 {[%emt 0:00:02]} dxc4 {[%emt 0:00:06]} 5. e3 {[%emt 0:00:04]} b5 {[%emt 0:00:05]} 6. a4 {[%emt 0:00:06]} b4 {[%emt 0:00:37]} 7. Nb1 {[%emt 0:00:04]} Ba6 {[%emt 0:00:39]} 8. Be2 {[%emt 0:00:07]} e6 {[%emt 0:00:55]} 9. O-O {[%emt 0:00:05]} Be7 {[%emt 0:03:35]} 10. Nbd2 {[%emt 0:00:17]} c3 {[%emt 0:01:19]} 11. bxc3 {[%emt 0:00:04]} bxc3 {[%emt 0:00:27]} 12. Nb1 {[%emt 0:00:03]} O-O {[%emt 0:17:38]} 13. Nxc3 {[%emt 0:01:12]} c5 {[%emt 0:01:18]} 14. Bb2 {[%emt 0:09:04]} Qa5 {[%emt 0:05:53]} 15. Nb5 {[%emt 0:03:32]} Nc6 {[%emt 0:02:54]} 16. dxc5 {[%emt 0:07:55]} Ne4 {[%emt 0:07:05]} 17. Nfd4 {[%emt 0:04:26]} Nxd4 {[%emt 0:04:48]} 18. exd4 {[%emt 0:01:48]} Bb7 {[%emt 0:00:16]} 19. Qe1 {[%emt 0:15:42]} Qxe1 {[%emt 0:00:51]} 20. Rfxe1 {[%emt 0:00:04]} a6 {[%emt 0:01:26]} 21. Nc3 {[%emt 0:07:24]} Rab8 {[%emt 0:02:07]} 22. Nxe4 {[%emt 0:03:11]} Bxe4 {[%emt 0:00:10]} 23. Bxa6 {[%emt 0:00:19]} Bxg2 {[%emt 0:02:25]} 24. Kxg2 {[%emt 0:00:22]} Rxb2 {[%emt 0:00:04]} 25. a5 {[%emt 0:03:51]} Bh4 {[%emt 0:01:53]} 26. Re2 {[%emt 0:04:06]} Rxe2 {[%emt 0:01:19]} 27. Bxe2 {[%emt 0:00:02]} Bf6 {[%emt 0:01:23]} 28. Ra4 {[%emt 0:00:23]} Ra8 {[%emt 0:01:25]} 29. a6 {[%emt 0:00:40]} Kf8 {[%emt 0:08:40]} 30. a7 {[%emt 0:00:40]} Bxd4 {[%emt 0:00:15]} 31. Bf3 1-0